Cogmind - Beta 10.2 @@@ ROGUE MODE // 2021.01.22 @ 09:20:45 Player: Demise Result: Self-destructed Performance ------------- Evolutions (4) 2000 Regions Visited (14) 2800 Robots Destroyed (113) 565 Value Destroyed (2265) 2265 Prototype IDs (34) 680 Alien Tech Used (0) 0 Bonus (973) 973 TOTAL SCORE: 9283 Bonus ------- High Alert Combat Kills 97 Follower Combat Kills 285 Aligned with FarCom 300 Met Imprinter 300 Friendly Fire -9 Cogmind --------- Core Integrity 438/850 Matter 269/300 Energy 28/100 System Corruption 0% Temperature Cool (12) Movement Core (200) Ox3 Location -6/Extension Parts ------- > --- POWER (2) -------- (None) > --- PROPULSION (3) --- Improved Cesium-ion Thruster Improved Cesium-ion Thruster Improved Cesium-ion Thruster > --- UTILITY (8) ------ Medium Storage Unit Advanced Signal Interpreter Improved Hacking Suite Improved Hacking Suite System Shield Improved System Shield > --- WEAPON (2) ------- CR-A16's Behemoth Slayer > --- INVENTORY (8) ---- Improved Cesium-ion Thruster Advanced ECM Suite Improved Hacking Suite Hacking Drone Bay (1/1) Phasing AFG Heavy Plasma Cannon Self-destruct Interrupter (50) Peak State ------------ > --- POWER ------------ Micro Nuclear Core Micro Nuclear Core > --- PROPULSION ------- Improved Cesium-ion Thruster Improved Cesium-ion Thruster Improved Cesium-ion Thruster > --- UTILITY ---------- Medium Storage Unit Improved Sensor Array Advanced Signal Interpreter Improved Hacking Suite Improved Hacking Suite Improved Hacking Suite > --- WEAPON ----------- Molecular Deconstructor > --- INVENTORY -------- Improved Cesium-ion Thruster System Shield System Shield System Shield System Restoration Module Improved Recalibrator Heavy Rocket Launcher Fire Trap [Rating: 65] Favorites ----------- Power Micro Nuclear Core Engine Light Deuterium Engine Power Core Micro Nuclear Core Propulsion Improved Cesium-ion Thruster Treads Light Treads Leg Carbon-fiber Leg Flight Unit Improved Cesium-ion Thruster Utility Improved Hacking Suite Device Weight Redist. System Storage High-capacity Storage Unit Processor Improved Signal Interpreter Hackware Improved Hacking Suite Protection Hardened Medium Armor Plating Weapon Assault Rifle Ballistic Gun Assault Rifle Launcher Mini Grenade Launcher Special Weapon Mining Laser Slashing Weapon Katana Piercing Weapon CR-A16's Behemoth Slayer Special Melee Weapon Datajack Build | -11 -10 -10 -10 -9 -8 -7 -7 -7 -7 -7 -7 -6 -6 -6 ------- Run | Scr Mat Min Exi Min Mat Fac Was Fac Low Low Zio Pro Fac Ext Slots Evolved 8 | . . . . . 4 2 . . . . . . 2 . Power 1 | . . . . . . 1 . . . . . . . . Propulsion 1 | . . . . . . 1 . . . . . . . . Utility 6 | . . . . . 4 . . . . . . . 2 . Weapon . | . . . . . . . . . . . . . . . Parts Attached 163 | 4 14 6 6 6 64 16 . 11 3 3 15 . 13 2 Power 20 | . 3 2 . 1 6 3 . 1 . . 1 . 2 1 Engine 11 | . 3 2 . . 2 1 . . . . 1 . 1 1 Core 9 | . . . . 1 4 2 . 1 . . . . 1 . Reactor . | . . . . . . . . . . . . . . . Propulsion 26 | 2 2 . 2 . 10 6 . 2 . . . . 2 . Treads 12 | 2 2 . 2 . 6 . . . . . . . . . Leg 1 | . . . . . 1 . . . . . . . . . Wheel . | . . . . . . . . . . . . . . . Hover . | . . . . . . . . . . . . . . . Flight 13 | . . . . . 3 6 . 2 . . . . 2 . Utility 71 | . 7 2 3 . 28 4 . 6 3 . 10 . 8 . Device 29 | . . . . . 12 1 . 4 2 . 7 . 3 . Storage 13 | . 3 1 2 . 6 . . 1 . . . . . . Processor 16 | . 4 1 1 . 6 . . 1 1 . 2 . . . Hackware 12 | . . . . . 3 3 . . . . 1 . 5 . Protection 1 | . . . . . 1 . . . . . . . . . Artifact . | . . . . . . . . . . . . . . . Weapon 46 | 2 2 2 1 5 20 3 . 2 . 3 4 . 1 1 Energy Gun . | . . . . . . . . . . . . . . . Energy Cannon . | . . . . . . . . . . . . . . . Ballistic Gun 15 | 2 1 1 1 3 7 . . . . . . . . . Ballistic Cannon . | . . . . . . . . . . . . . . . Launcher 5 | . . . . . 2 1 . 1 . . . . . 1 Special Weapon 11 | . 1 1 . 2 5 . . . . 2 . . . . Impact Weapon . | . . . . . . . . . . . . . . . Slashing Weapon 11 | . . . . . 6 2 . 1 . 1 1 . . . Piercing Weapon 3 | . . . . . . . . . . . 3 . . . Special Melee Weapon 1 | . . . . . . . . . . . . . 1 . Unidentified Prototypes 6 | . . . . . 1 1 . 1 . 1 2 . . . Parts Lost 18 | . . 1 . . 5 . . . . 5 . 1 1 5 Power 5 | . . 1 . . . . . . . 1 . 1 . 2 Propulsion 1 | . . . . . 1 . . . . . . . . . Utility 8 | . . . . . 2 . . . . 3 . . 1 2 Weapon 4 | . . . . . 2 . . . . 1 . . . 1 Highest Loss Streak 5 | . . 1 . . 2 . . . . 5 . 1 1 5 Average Slot Usage (%) 90 | . 83 100 99 100 87 89 92 91 92 91 84 85 85 83 Engine 4 | . 3 14 14 1 5 1 . . . . 5 . . . Core 5 | . . . . 12 2 11 15 15 15 14 7 7 6 4 Treads 15 | . 28 28 28 28 15 . . . . . . . . . Flight 7 | . . . . . 2 23 23 23 23 23 23 23 20 20 Device 6 | . . . . . 13 7 7 7 7 6 14 7 5 5 Storage 9 | . 7 27 27 28 1 . . 3 7 7 7 7 6 6 Processor 12 | . 16 . . . 20 15 15 10 7 7 9 15 7 6 Hackware 10 | . . . . . 11 23 23 23 23 22 8 15 31 33 Ballistic Gun 10 | . 23 26 20 26 4 . . . . . . . . . Special Weapon 1 | . 3 1 7 1 . . . . . . . . . . Slashing Weapon 4 | . . . . . 8 6 7 6 7 6 . . . . Naked Turns . | . . . . . . . . . . . . . . . Heaviest Build 74 | 3 70 73 73 74 73 19 18 26 28 27 27 26 22 22 Greatest Support 52 | 3 46 46 46 46 52 22 22 24 24 24 24 24 24 24 Greatest Overweight (x) 5 | . 1 1 1 1 5 . . 1 1 1 1 1 . 3 Average Overweight (x) . | . . . . 1 . . . . 1 . . . . . Largest Inventory Capacity 20 | 4 20 20 20 20 20 4 4 8 8 8 8 8 8 8 Average Capacity 9 | 4 8 19 19 20 5 4 4 6 8 8 8 8 8 8 Most Carried 20 | 4 18 20 20 20 20 4 4 7 8 8 8 8 8 8 Average Carried 8 | 1 5 19 18 19 4 3 3 5 7 7 7 8 7 7 Final Capacity 20 | 4 20 20 20 20 4 4 4 8 8 8 8 8 8 8 Final Carried 20 | 3 18 18 19 20 4 4 4 7 8 6 8 8 8 7 Class Distribution -------------------- 25% | Hauler-Mutant 19% | Scavenger-Mutant 14% | Mutant 11% | Hacker-Scout 10% | Hacker-Mutant 6% | Scavenger-Assassin 6% | Hacker-Sprinter 3% | Hacker-Assassin Dominant Class ---------------- Mutant | -10/Materials Hauler-Mutant | -10/Mines Hauler-Mutant | -10/Exiles Hauler-Mutant | -9/Mines Scavenger-Mutant | -8/Materials Hacker-Scout | -7/Factory Hacker-Scout | -7/Waste Hacker-Assassin | -7/Factory Hacker-Mutant | -7/Lower Caves Hacker-Mutant | -7/Lower Caves Derelict-Scout | -7/Zion Hacker-Sprinter | -6/Proximity Caves Hacker-Scout | -6/Factory Hacker-Sprinter | -6/Extension Resources | -11 -10 -10 -10 -9 -8 -7 -7 -7 -7 -7 -7 -6 -6 -6 ----------- Run | Scr Mat Min Exi Min Mat Fac Was Fac Low Low Zio Pro Fac Ext Matter Collected 3088 | 264 531 379 90 190 917 261 . 138 30 25 120 40 103 . Remotely . | . . . . . . . . . . . . . . . Salvage Created 3991 | 101 488 295 . 221 1867 322 . 224 78 34 . 133 103 125 Parts 248 | 13 39 21 . 16 97 25 . 12 4 4 . 8 6 3 Haulers Intercepted 12 | . 2 . . . 5 3 . 2 . . . . . . Recyclers Shooed 3 | . 2 . . . 1 . . . . . . . . . Parts Field Recycled . | . . . . . . . . . . . . . . . Retrieved Matter . | . . . . . . . . . . . . . . . Parts Self-Destructed 14 | . . . . . . . . . 6 . . 8 . . Prevented . | . . . . . . . . . . . . . . . Kills | -11 -10 -10 -10 -9 -8 -7 -7 -7 -7 -7 -7 -6 -6 -6 ------- Run | Scr Mat Min Exi Min Mat Fac Was Fac Low Low Zio Pro Fac Ext Combat Hostiles Destroyed 57 | . 9 12 . 6 21 2 . 1 . 1 . 1 1 3 Melee 15 | . . . . . 11 1 . 1 . . . . 1 1 Guns 34 | . 9 11 . 6 8 . . . . . . . . . Cannons 1 | . . 1 . . . . . . . . . . . . AOE 5 | . . . . . 2 1 . . . . . . . 2 Classes Destroyed 20 | 2 6 3 . . 4 1 . . 2 1 . 1 . . Worker 18 | . . 4 . 1 7 2 . 2 . . . . 2 . Builder 3 | . 1 1 . . 1 . . . . . . . . . Tunneler 7 | 3 . . . 3 . . . 1 . . . . . . Hauler 12 | . 2 . . . 5 3 . 2 . . . . . . Recycler 6 | 1 1 . . . 4 . . . . . . . . . Minesweeper 1 | . . . . . . . . . 1 . . . . . Mechanic 1 | . . . . . 1 . . . . . . . . . Operator 4 | . 1 . . . 3 . . . . . . . . . Watcher 10 | . 3 . . . 3 3 . 1 . . . . . . Swarmer 21 | . 6 5 . 4 4 . . . . 1 . . . 1 Grunt 12 | . 3 . . 2 5 . . . . . . . . 2 Brawler 1 | . . . . . 1 . . . . . . . . . Duelist 2 | . . . . . 2 . . . . . . . . . Sentry 10 | . . 1 . . 8 . . . . . . . 1 . Hunter 1 | . . . . . 1 . . . . . . . . . Programmer 3 | . . . . . . 2 . 1 . . . . . . Behemoth 1 | . . . . . . . . . . . . 1 . . Packrat 1 | . . . . . . . . . . . . 1 . . Samaritan 1 | . . . . . . . . . 1 . . . . . Tinkerer 1 | . . . . . . . . . . 1 . . . . Assembled 6 | . . 6 . . . . . . . . . . . . Best Kill Streak 6 | 4 4 5 . 4 6 2 . 2 1 1 . 1 2 3 Combat Bots Only 4 | . 3 3 . 4 4 1 . 1 . 1 . 1 1 3 Max Kills in Single Turn 2 | 1 1 1 . 1 2 1 . 1 1 1 . 1 1 2 Gunslinging 1 | . . . . . 1 . . . . . . . . . Exploded 2 | . . . . . 2 1 . . . . . . . 2 Melee 1 | . . . . . 1 1 . 1 . . . . 1 1 Uniques/NPCs Destroyed . | . . . . . . . . . . . . . . . Combat | -11 -10 -10 -10 -9 -8 -7 -7 -7 -7 -7 -7 -6 -6 -6 -------- Run | Scr Mat Min Exi Min Mat Fac Was Fac Low Low Zio Pro Fac Ext Damage Taken 4028 | . 277 475 . 219 1224 159 . 15 146 406 . 177 258 672 Core 1106 | . 42 104 . 30 191 85 . . 61 64 . 117 161 251 Absorbed by Shields 19 | . . . . . . . . . . . . . . 19 Core Remaining (%) 61 | 100 . . . 29 65 . . . . . . 53 . . Volleys Fired 234 | 6 58 36 . 38 85 8 . . . 2 . . . 1 Largest 2 | 2 2 2 . 2 2 1 . . . 1 . . . 1 Hottest 120 | 40 120 100 . 100 100 30 . . . . . . . 39 Shots Fired 409 | 12 114 70 . 58 144 8 . . . 2 . . . 1 Gun 350 | 12 111 68 . 40 119 . . . . . . . . . Cannon . | . . . . . . . . . . . . . . . Launcher 12 | . . . . . 3 8 . . . . . . . 1 Special 47 | . 3 2 . 18 22 . . . . 2 . . . . Kinetic 350 | 12 111 68 . 40 119 . . . . . . . . . Thermal 45 | . 3 2 . 18 22 . . . . . . . . . Explosive 12 | . . . . . 3 8 . . . . . . . 1 Electromagnetic . | . . . . . . . . . . . . . . . Robot Hit Streak 23 | 7 23 11 . 10 14 4 . . . 3 . . . . Robot Miss Streak 6 | 1 6 2 . 2 6 2 . . . . . . . . Penetration Max . | . . . . . . . . . . . . . . . Secondary Targets 5 | . 1 . . 1 3 . . . . . . . . . Max Gunslinging Chain 1 | . 1 . . 1 1 . . . . . . . . . Shots Hit Robots 337 | 7 63 49 . 26 132 26 . 13 2 2 . 3 11 3 Core Hits 170 | 6 29 23 . 14 66 12 . 6 2 1 . 2 3 6 Critical Hits 8 | . 2 1 . . 1 1 . . . . . . 2 1 Critical Kills 3 | . 1 1 . . . . . . . . . . . 1 Critical Parts Destroyed 4 | . 1 . . . 1 1 . . . . . . 1 . Melee Attacks 232 | . . . . . 99 39 . 32 5 5 1 14 33 4 Impact . | . . . . . . . . . . . . . . . Slashing 180 | . . . . . 99 39 . 32 5 5 . . . . Piercing 51 | . . . . . . . . . . . 1 14 32 4 Sneak Attacks 37 | . . . . . 19 5 . 5 2 1 . 1 4 . Combat Hostiles . | . . . . . . . . . . . . . . . Follow-up Attacks 6 | . . . . . 6 . . . . . . . . . Damage Inflicted 10289 | 86 671 622 . 371 4190 1462 . 1236 300 157 . 154 611 429 Guns 2557 | 86 671 598 . 371 831 . . . . . . . . . Cannons . | . . . . . . . . . . . . . . . Explosions 672 | . . . . . 97 231 . . . . . . . 344 Melee 6949 | . . . . . 3180 1231 . 1236 295 157 . 154 611 85 Ramming 15 | . . . . . 10 . . . 5 . . . . . Kinetic 2557 | 86 671 598 . 371 831 . . . . . . . . . Thermal 96 | . . 24 . . 72 . . . . . . . . . Explosive 672 | . . . . . 97 231 . . . . . . . 344 Electromagnetic . | . . . . . . . . . . . . . . . Impact . | . . . . . . . . . . . . . . . Slashing 6099 | . . . . . 3180 1231 . 1236 295 157 . . . . Piercing 850 | . . . . . . . . . . . . 154 611 85 Highest Corruption 4 | . . . . . 1 3 3 4 3 . . 1 . . Average Corruption 1 | . . . . . 1 2 3 2 1 . . 1 . . Corruption Purged 6 | . . . . . . . . 3 3 . . . . . Effects 28 | . . . . . 7 6 1 13 . . . 1 . . Message Errors 9 | . . . . . 4 . . 5 . . . . . . Matter Fused 7 | . . . . . . 3 . 4 . . . . . . Heat Flow Errors 1 | . . . . . . . . 1 . . . . . . Energy Discharges 5 | . . . . . 2 . . 2 . . . 1 . . Data Loss (minor) 4 | . . . . . . 3 1 . . . . . . . Targeting Errors 2 | . . . . . 1 . . 1 . . . . . . Overload Shots . | . . . . . . . . . . . . . . . Overflow Damage 1086 | . . . . . 578 160 . 238 . . . . 110 . Projectiles . | . . . . . . . . . . . . . . . Explosions . | . . . . . . . . . . . . . . . Melee 1086 | . . . . . 578 160 . 238 . . . . 110 . Knockbacks . | . . . . . . . . . . . . . . . Impact . | . . . . . . . . . . . . . . . Kinetic . | . . . . . . . . . . . . . . . Secondary . | . . . . . . . . . . . . . . . Self-Inflicted Damage 77 | . . . . . 5 9 . . 2 . . . . 61 Shots 2 | . . . . . . 1 . . . . . . . 1 Rammed 2 | . . . . . 1 . . . 1 . . . . . Targets Rammed 2 | . . . . . 1 . . . 1 . . . . . Kicked . | . . . . . . . . . . . . . . . Crushed . | . . . . . . . . . . . . . . . Highest Temperature 168 | . 4 24 . 168 14 16 . 95 1 . . . . . Average Temperature 43 | . 2 10 . 59 4 8 . 49 1 . . . . . Received Heat Transfer 881 | . 36 158 . 12 405 . . . 30 . . 12 84 144 Siege Activations . | . . . . . . . . . . . . . . . Robots Corrupted . | . . . . . . . . . . . . . . . Combat Hostiles . | . . . . . . . . . . . . . . . Parts Fried . | . . . . . . . . . . . . . . . Impact Corruptions . | . . . . . . . . . . . . . . . Robots Melted . | . . . . . . . . . . . . . . . Combat Hostiles . | . . . . . . . . . . . . . . . Parts Melted 1 | . . . . . 1 . . . . . . . . . Heat Transferred 200 | . . 50 . . 150 . . . . . . . . . Parts Sabotaged . | . . . . . . . . . . . . . . . Parts Stolen . | . . . . . . . . . . . . . . . Parts Stripped . | . . . . . . . . . . . . . . . Power Chain Reactions . | . . . . . . . . . . . . . . . Missiles Intercepted . | . . . . . . . . . . . . . . . Alert | -11 -10 -10 -10 -9 -8 -7 -7 -7 -7 -7 -7 -6 -6 -6 ------- Run | Scr Mat Min Exi Min Mat Fac Was Fac Low Low Zio Pro Fac Ext Peak Influence 1141 | 20 304 90 . 145 518 1141 437 613 . . . . 450 220 Initial 392 | . 13 . . . . 222 392 305 . . . . 28 220 Average 225 | 8 108 19 . 38 339 469 421 386 . . . . 75 193 Maximum Alert Level 4 | . 1 . . . 2 4 2 2 . . . . 2 1 Low Security (%) 52 | 100 79 100 . 100 25 . . 19 . . . . 90 33 Level 1 19 | . 20 . . . 25 43 25 39 . . . . . 66 Level 2 27 | . . . . . 49 42 75 41 . . . . 9 . Level 3 . | . . . . . . 8 . . . . . . . . Level 4 . | . . . . . . 5 . . . . . . . . Level 5 . | . . . . . . . . . . . . . . . High Security . | . . . . . . . . . . . . . . . Max Security . | . . . . . . . . . . . . . . . Squads Dispatched 40 | . 1 1 . 3 8 11 . 8 . . . . 7 1 Investigation 15 | . . . . 2 2 4 . 6 . . . . 1 . Extermination 6 | . . . . . . 2 . 2 . . . . 2 . Reinforcement 11 | . 1 . . 1 3 3 . . . . . . 2 1 Assault 6 | . . 1 . . 2 1 . . . . . . 2 . Garrison 2 | . . . . . 1 1 . . . . . . . . Intercept . | . . . . . . . . . . . . . . . Construction Impeded 3 | . . . . 1 . 1 . . . . . . . 1 Haulers Reinforced 2 | . . . . . . 1 . . . . . . 1 . Stealth | -11 -10 -10 -10 -9 -8 -7 -7 -7 -7 -7 -7 -6 -6 -6 --------- Run | Scr Mat Min Exi Min Mat Fac Was Fac Low Low Zio Pro Fac Ext Distress Signals 7 | . 2 1 . . 4 . . . . . . . . . Communications Jammed . | . . . . . . . . . . . . . . . Distress Signals . | . . . . . . . . . . . . . . . Times Spotted 147 | . 22 18 . 9 47 12 6 3 9 4 . 2 5 10 Peak Tracking Total 9 | . 4 4 . 4 5 4 6 1 8 4 . 1 7 9 Tactical Retreats 8 | . 2 . . . 2 . . . 2 . . 1 1 . Traps | -11 -10 -10 -10 -9 -8 -7 -7 -7 -7 -7 -7 -6 -6 -6 ------- Run | Scr Mat Min Exi Min Mat Fac Was Fac Low Low Zio Pro Fac Ext Traps Triggered 5 | . 1 . . . . 1 . 3 . . . . . . Indirectly . | . . . . . . . . . . . . . . . Trap Hack Attempts . | . . . . . . . . . . . . . . . Triggered . | . . . . . . . . . . . . . . . Disarmed . | . . . . . . . . . . . . . . . Reprogrammed . | . . . . . . . . . . . . . . . Reused . | . . . . . . . . . . . . . . . Traps Extracted . | . . . . . . . . . . . . . . . Installed . | . . . . . . . . . . . . . . . Triggered 3 | . . . . . . . . . 3 . . . . . Machines | -11 -10 -10 -10 -9 -8 -7 -7 -7 -7 -7 -7 -6 -6 -6 ---------- Run | Scr Mat Min Exi Min Mat Fac Was Fac Low Low Zio Pro Fac Ext Machines Disabled 5 | . . . . . 1 2 . . . 1 . . . 1 Max in Single Turn 1 | . . . . . 1 1 . . . 1 . . . 1 Garrison Access 2 | . . . . . 1 1 . . . . . . . . Machines Sabotaged . | . . . . . . . . . . . . . . . Garrisons Compromised . | . . . . . . . . . . . . . . . Overloaded Fab Kills . | . . . . . . . . . . . . . . . Fab Network Shutdowns 3 | . . . . . . 1 . 1 . . . . 1 . Hacking | -11 -10 -10 -10 -9 -8 -7 -7 -7 -7 -7 -7 -6 -6 -6 --------- Run | Scr Mat Min Exi Min Mat Fac Was Fac Low Low Zio Pro Fac Ext Machines Accessed 56 | . 9 . 2 2 10 9 . 12 . . . . 9 3 Terminals 29 | . 6 . . 1 4 4 . 8 . . . . 3 3 Fabricators 6 | . . . . . . 1 . 3 . . . . 2 . Repair Stations 4 | . 1 . . . 1 . . 1 . . . . 1 . Recycling Units 7 | . 2 . . . 2 2 . . . . . . 1 . Scanalyzers 3 | . . . . . 2 . . . . . . . 1 . Garrison Access 4 | . . . . . 1 2 . . . . . . 1 . Total Hacks 180 | . 33 . 2 6 35 27 . 30 . . . . 42 5 Successful 121 | . 21 . 2 3 29 17 . 19 . . . . 27 3 Failed 57 | . 11 . . 3 6 10 . 10 . . . . 15 2 Catastrophic 3 | . . . . . . 1 . 1 . . . . 1 . Database Lockouts 2 | . 1 . . . . . . 1 . . . . . . Manual 106 | . 24 . 1 5 16 18 . 20 . 1 . . 19 2 Terminals 86 | . 19 . . 5 12 12 . 20 . . . . 13 5 Fabricators 24 | . . . . . . 6 . 6 . . . . 12 . Repair Stations 16 | . 4 . . . 2 . . 4 . . . . 6 . Recycling Units 26 | . 10 . . . 8 5 . . . . . . 3 . Scanalyzers 15 | . . . . . 11 . . . . . . . 4 . Garrison Access 10 | . . . . . 2 4 . . . . . . 4 . Terminal Hacks 26 | . 5 . 2 3 5 1 . 3 . . . . 5 2 Record 2 | . . . 1 1 . . . . . . . . . . Part Schematic 4 | . . . . . . 1 . 1 . . . . 2 . Robot Analysis 5 | . 3 . . 1 1 . . . . . . . . . Open Door 3 | . . . . 1 . . . . . . . . . 2 Level Access Points 1 | . . . . . . . . 1 . . . . . . Branch Access Points 1 | . . . . . 1 . . . . . . . . . Terminal Index 3 | . 1 . . . 1 . . 1 . . . . . . Recycling Unit Index 1 | . 1 . . . . . . . . . . . . . Unreport Threat 2 | . . . . . . . . . . . . . 2 . Locate Traps 1 | . . . . . 1 . . . . . . . . . Hauler Manifests 2 | . . . . . 1 . . . . . . . 1 . EX-Prototype ID Bank 1 | . . . 1 . . . . . . . . . . . Fabricator Hacks 18 | . . . . . . 5 . 6 . . . . 7 . Load Schematic 6 | . . . . . . 1 . 3 . . . . 2 . Build 12 | . . . . . . 4 . 3 . . . . 5 . Repair Station Hacks 12 | . 4 . . . 2 . . 4 . . . . 2 . Scan Component 6 | . 2 . . . 1 . . 2 . . . . 1 . Repair 6 | . 2 . . . 1 . . 2 . . . . 1 . Recycling Unit Hacks 5 | . 2 . . . 1 1 . . . . . . 1 . Retrieve Components 5 | . 2 . . . 1 1 . . . . . . 1 . Scanalyzer 12 | . . . . . 11 . . . . . . . 1 . Insert Component 8 | . . . . . 7 . . . . . . . 1 . Analyze 4 | . . . . . 4 . . . . . . . . . Garrison Access Hacks 1 | . . . . . 1 . . . . . . . . . Seal Access 1 | . . . . . 1 . . . . . . . . . Unauthorized Hacks 47 | . 10 . . . 9 10 . 6 . . . . 11 1 Terminals 27 | . 6 . . . 5 5 . 6 . . . . 4 1 Track 2 | . 1 . . . . . . . . . . . 1 . Assimilate 3 | . 1 . . . . 1 . . . . . . . 1 Botnet 20 | . 4 . . . 4 4 . 6 . . . . 2 . Operators 2 | . . . . . 1 . . . . . . . 1 . Fabricators 3 | . . . . . . . . . . . . . 3 . Report 1 | . . . . . . . . . . . . . 1 . Siphon 1 | . . . . . . . . . . . . . 1 . Haulers 1 | . . . . . . . . . . . . . 1 . Repair Stations . | . . . . . . . . . . . . . . . Recycling Units 11 | . 4 . . . 4 1 . . . . . . 2 . Reject 5 | . 2 . . . 2 . . . . . . . 1 . Mask 6 | . 2 . . . 2 1 . . . . . . 1 . Scanalyzers . | . . . . . . . . . . . . . . . Garrison Access 6 | . . . . . . 4 . . . . . . 2 . Redirect 1 | . . . . . . . . . . . . . 1 . Reprogram 2 | . . . . . . 2 . . . . . . . . Watchers 3 | . . . . . . 2 . . . . . . 1 . Data Cores Recovered . | . . . . . . . . . . . . . . . Used . | . . . . . . . . . . . . . . . Hacking Detections 44 | . 8 . . 1 8 8 . 11 . . . . 6 2 Full Trace Events 12 | . . . . 1 2 4 . 5 . . . . . . Feedback Events 3 | . . . . . 1 1 . 1 . . . . . . Corruption 3 | . . . . . 1 1 . 1 . . . . . . Feedback Blocked . | . . . . . . . . . . . . . . . Robot Schematics Acquired . | . . . . . . . . . . . . . . . Robots Built . | . . . . . . . . . . . . . . . Matter . | . . . . . . . . . . . . . . . Time . | . . . . . . . . . . . . . . . Total Robot Build Rating . | . . . . . . . . . . . . . . . Part Schematics Acquired 6 | . . . . . 2 1 . 1 . . . . 2 . Parts Built 10 | . . . . . . 3 . 3 . . . . 4 . Matter 1720 | . . . . . . 570 . 438 . . . . 712 . Time 607 | . . . . . . 141 . 182 . . . . 284 . Total Part Build Rating 44 | . . . . . . 15 . 9 . . . . 20 . Parts Repaired 6 | . 2 . . . 1 . . 2 . . . . 1 . Time 151 | . 52 . . . 32 . . 44 . . . . 23 . Parts Recycled . | . . . . . . . . . . . . . . . Recycled Matter . | . . . . . . . . . . . . . . . Retrieved Matter . | . . . . . . . . . . . . . . . Retrieved Components 21 | . 9 . . . 10 2 . . . . . . . . Parts Scanalyzed 3 | . . . . . 2 . . . . . . . 1 . Part Schematics Acquired 2 | . . . . . 2 . . . . . . . . . Parts Damaged . | . . . . . . . . . . . . . . . Bothacking | -11 -10 -10 -10 -9 -8 -7 -7 -7 -7 -7 -7 -6 -6 -6 ------------ Run | Scr Mat Min Exi Min Mat Fac Was Fac Low Low Zio Pro Fac Ext Used RIF Installer . | . . . . . . . . . . . . . . . Robots Hacked 1 | . . . . . . . . . . . . . 1 . Non-combat 1 | . . . . . . . . . . . . . 1 . Combat . | . . . . . . . . . . . . . . . Robot Hacks Applied 1 | . . . . . . . . . . . . . 1 . find_chute 1 | . . . . . . . . . . . . . 1 . Relay Couplers Released 2 | . . . . . . 2 . . . . . . . . Machine Destruction 2 | . . . . . . 2 . . . . . . . . Robots Rewired . | . . . . . . . . . . . . . . . Allies Hacked . | . . . . . . . . . . . . . . . Hacks Repelled . | . . . . . . . . . . . . . . . Allies | -11 -10 -10 -10 -9 -8 -7 -7 -7 -7 -7 -7 -6 -6 -6 -------- Run | Scr Mat Min Exi Min Mat Fac Was Fac Low Low Zio Pro Fac Ext Total Allies 12 | . 1 . . 3 . 3 . . . . . . . 5 Largest Group 4 | . 1 1 1 4 2 3 . . . . . . . 4 Highest-Rated Group 107 | . 10 10 10 50 32 58 . . . . . . . 107 Highest-Rated Ally 31 | . 10 10 10 16 16 26 . . . . . . . 31 Total Orders 15 | . 2 4 . 6 2 . . . . . . . 1 . STAY 7 | . 1 2 . 3 1 . . . . . . . . . FOLLOW 7 | . 1 2 . 3 1 . . . . . . . . . RETURN 1 | . . . . . . . . . . . . . 1 . Ally Attacks 123 | . . . . 27 36 35 . . . . . . . 25 Total Damage 1427 | . . . . 265 419 393 . . . . . . . 350 Kills 14 | . . . . 4 5 5 . . . . . . . . Allies Corrupted . | . . . . . . . . . . . . . . . Allies Melted . | . . . . . . . . . . . . . . . Intel | -11 -10 -10 -10 -9 -8 -7 -7 -7 -7 -7 -7 -6 -6 -6 ------- Run | Scr Mat Min Exi Min Mat Fac Was Fac Low Low Zio Pro Fac Ext Robot Analysis Total 5 | . 3 . . 1 1 . . . . . . . . . Derelict Logs Recovered 9 | . . 3 . 2 . . . . 1 1 . 2 . . Drone Launches 1 | . . . . . . . . . . . . . 1 . Drone Recoveries 1 | . . . . . . . . . . . . . 1 . Exploration | -11 -10 -10 -10 -9 -8 -7 -7 -7 -7 -7 -7 -6 -6 -6 ------------- Run | Scr Mat Min Exi Min Mat Fac Was Fac Low Low Zio Pro Fac Ext Turns Passed 15632 | 65 1663 1601 626 1453 5615 682 48 1010 390 401 517 361 1101 99 Spaces Moved 12971 | 63 1433 775 334 716 3448 1161 107 1218 386 417 1009 494 1316 94 Core 2413 | 63 949 . . . 1400 . . . . . . . . 1 Treads 4148 | . 484 775 334 716 1839 . . . . . . . . . Legs . | . . . . . . . . . . . . . . . Wheels . | . . . . . . . . . . . . . . . Hover . | . . . . . . . . . . . . . . . Flight 6410 | . . . . . 209 1161 107 1218 386 417 1009 494 1316 93 Fastest Speed 29 | 50 50 160 160 180 32 29 32 29 94 29 29 29 29 29 Average Speed 87 | 50 94 179 179 180 113 32 32 51 94 89 44 35 29 30 Slowest Speed 300 | 50 180 180 180 180 300 34 32 94 94 94 94 94 29 200 Overloaded Moves . | . . . . . . . . . . . . . . . Propulsion Burnouts . | . . . . . . . . . . . . . . . Robots Hopped 7 | . . . . . . . . 2 . . . . 5 . Cave-ins Triggered 1 | . . . . . . . . . . . . 1 . . Time Travels 1 | . . . 1 . . . . . . . . . . . Exploration Rate (%) 59 | 3 98 98 68 92 91 26 75 25 55 64 85 72 26 13 Regions Visited 14 Branch Regions 8 Pre-discovered Areas 5 | . . . 1 1 . . . . . 1 1 1 . . Known Exits Taken 10 | . 1 1 1 . 1 . . 1 1 1 1 1 1 . Unknown Exits Taken 2 | 1 . . . 1 . . . . . . . . . . Scrap Searched 12 | . . 1 . 2 . . . . 2 1 4 2 . . Spaces Dug 108 | . . 1 . 9 35 6 . 15 3 . . 11 21 7 Terrain Destroyed 199 | . . 1 . 16 104 21 . 15 3 . . 11 21 7 Melee 85 | . . . . . 29 6 . 15 3 . . 11 21 . Projectile 31 | . . 1 . 16 14 . . . . . . . . . AOE 83 | . . . . . 61 15 . . . . . . . 7 Terrain Rammed . | . . . . . . . . . . . . . . . Walls Destroyed . | . . . . . . . . . . . . . . . Machines Disabled . | . . . . . . . . . . . . . . . Actions | -11 -10 -10 -10 -9 -8 -7 -7 -7 -7 -7 -7 -6 -6 -6 --------- Run | Scr Mat Min Exi Min Mat Fac Was Fac Low Low Zio Pro Fac Ext Total 16412 | 85 1651 914 360 790 4852 1396 120 1542 401 432 1079 655 1979 156 Wait 2472 | 3 65 78 . 20 1024 162 12 250 6 2 37 148 610 55 Move 12945 | 62 1432 774 333 715 3447 1161 106 1213 385 416 1008 493 1306 94 Hop 6 | . . . . . . . . 2 . . . . 4 . Pick Up 159 | 7 47 13 17 5 49 1 1 7 1 . 6 . 5 . Fast Attach 67 | 3 5 2 1 1 30 7 . 3 . 2 7 . 5 1 Attach 37 | 1 6 2 2 . 12 1 . 1 . 1 8 . 2 1 Detach 40 | . 4 2 1 1 20 1 . 2 . 1 6 . 2 . Swap 59 | . 3 2 3 5 22 8 . 7 3 . . . 6 . Drop 148 | 3 31 5 3 5 70 8 1 7 . 3 6 . 6 . Fire 234 | 6 58 36 . 38 85 8 . . . 2 . . . 1 Melee 225 | . . . . . 92 39 . 32 5 5 1 14 33 4 Ram 2 | . . . . . 1 . . . 1 . . . . . Kick . | . . . . . . . . . . . . . . . Crush . | . . . . . . . . . . . . . . . Escape Stasis 18 | . . . . . . . . 18 . . . . . . Rewire . | . . . . . . . . . . . . . . . Trap . | . . . . . . . . . . . . . . . Miscellaneous . | . . . . . . . . . . . . . . . Route ------- -11/Scrapyard -10/Materials (discovered 4 exits: *Mat x3 / *Min) -10/Mines (discovered 3 exits: *Mat x2 / *Exi) -10/Exiles -9/Mines (discovered 2 exits: *Mat x2) -8/Materials (discovered 2 exits: *Fac x2) -7/Factory -7/Waste -7/Factory (discovered 5 exits: *Fac x4 / *Low) -7/Lower Caves -7/Lower Caves -7/Zion -6/Proximity Caves -6/Factory (discovered 3 exits: *Fac / *Low / *Ext) -6/Extension History --------- Turn | Location | Event 9 | -11/Scrapyard | Discovered new exit (range 14) 66 | -11/Scrapyard | Entered Materials 334 | -10/Materials | Build established: Mutant 374 | -10/Materials | Discovered new exit (range 15) 385 | -10/Materials | Central database locked down 400 | -10/Materials | Identified exit to Materials 461 | -10/Materials | Discovered new exit (range 5) 464 | -10/Materials | Identified exit to Mines 532 | -10/Materials | Discovered exit to Materials (range 8) 582 | -10/Materials | Discovered exit to Materials (range 9) 1238 | -10/Materials | Repaired Assault Rifle 1265 | -10/Materials | Repaired Lgt. Assault Rifle 1729 | -10/Materials | Entered Mines 1729 | -10/Mines | Accompanied by 1 ally 1736 | -10/Mines | Assembled infested the area 1983 | -10/Mines | Build established: Hauler-Mutant 2099 | -10/Mines | Met a Derelict testing a Signal Generator 2112 | -10/Mines | Found Signal Generator 2384 | -10/Mines | A weapon hastily lodged in a ceiling crevice suddenly fell to the ground 2401 | -10/Mines | Deemed a non-threat by the Exiles lab entrance 2401 | -10/Mines | Discovered new exit (range 5) 2787 | -10/Mines | Learned Materials stockpile data 3285 | -10/Mines | Identified exit to Exiles 3315 | -10/Mines | Core integrity fell below 50% 3330 | -10/Mines | Entered Exiles 3330 | -10/Exiles | Accompanied by 1 ally 3375 | -10/Exiles | Met 8R-AWN 3404 | -10/Exiles | Met EX-HEX 3491 | -10/Exiles | Met EX-DEC 3521 | -10/Exiles | Learned location of Zion (-7) 3554 | -10/Exiles | Met EX-BIN 3579 | -10/Exiles | Aligned with FarCom system 3581 | -10/Exiles | Given EX-Vault access code 3622 | -10/Exiles | Opened EX-Vault 3635 | -10/Exiles | Found Chronowheel 3635 | -10/Exiles | Activated Chronowheel 3635 | -10/Exiles | Spacetime reconverged on an earlier point 3670 | -10/Exiles | Found Firepult 3714 | -10/Exiles | Warned to stay clear of 0b10 Research branches 3910 | -10/Exiles | Discovered new exit (range 14) 3931 | -10/Exiles | Identified exit to Mines 3956 | -10/Exiles | Left Exiles lab with Firepult 3956 | -10/Exiles | Entered Mines 3956 | -9/Mines | Accompanied by 1 ally 3964 | -9/Mines | Met a Derelict bent on vengeance 4082 | -9/Mines | Met a Derelict shopkeep closing up shop 4313 | -9/Mines | Assisted by bots powering up and referring to "LRC-V3" 4522 | -9/Mines | Excavation squad dispatched 4522 | -9/Mines | A large section of the Mines collapsed 4584 | -9/Mines | Learned 2 Materials zone layouts 4627 | -9/Mines | Learned location of Storage (-7) 4747 | -9/Mines | Learned Materials garrison access intel 4772 | -9/Mines | Excavation squad dispatched 5012 | -9/Mines | Discovered new exit (range 8) 5154 | -9/Mines | Discovered new exit (range 6) 5409 | -9/Mines | Entered Materials 5409 | -8/Materials | Accompanied by 2 allies 5409 | -8/Materials | Evolved 4 slots: Utility x4 5410 | -8/Materials | Identified exit to Factory 5412 | -8/Materials | Loaded intel: 1 garrison access location 5931 | -8/Materials | Garrison activated, responded to threat 5941 | -8/Materials | Build established: Mutant 6395 | -8/Materials | Build established: Scavenger-Mutant 6526 | -8/Materials | Repaired Imp. Treads 6713 | -8/Materials | Build established: Scavenger-Assassin 7160 | -8/Materials | Build established: Scavenger-Mutant 7627 | -8/Materials | Discovered exit to Factory (range 8) 8609 | -8/Materials | First assault squad dispatched 9934 | -8/Materials | Build established: Scavenger-Assassin 10528 | -8/Materials | Build established: Hacker-Mutant 11024 | -8/Materials | Entered Factory 11024 | -7/Factory | Evolved 2 slots: Power x1, Propulsion x1 11208 | -7/Factory | Build established: Hacker-Scout 11333 | -7/Factory | Fabricated Imp. Hacking Suite? 11441 | -7/Factory | Fabricated Imp. Hacking Suite (x1) 11490 | -7/Factory | Fabricated Imp. Hacking Suite (x1) 11549 | -7/Factory | Garrison activated, responded to threat 11612 | -7/Factory | Local fabrication network quarantined 11706 | -7/Factory | Manually triggered Chute Trap 11706 | -7/Factory | Sucked down chute 11706 | -7/Factory | Entered Waste 11715 | -7/Waste | Spotted C-40 Crusher 11717 | -7/Waste | Spotted C-40 Crusher 11720 | -7/Waste | Spotted C-40 Crusher 11728 | -7/Waste | Spotted C-40 Crusher 11728 | -7/Waste | Spotted C-40 Crusher 11728 | -7/Waste | Discovered new exit (range 20) 11730 | -7/Waste | Spotted C-40 Crusher 11754 | -7/Waste | Identified exit to Factory 11754 | -7/Waste | Entered Factory 11966 | -7/Factory | Repaired System Restoration Module 11986 | -7/Factory | Repaired Imp. Sensor Array 12044 | -7/Factory | Build established: Hacker-Sprinter 12163 | -7/Factory | Central database locked down 12238 | -7/Factory | Fabricated System Shield (x1) 12263 | -7/Factory | Fabricated System Shield? 12296 | -7/Factory | Fabricated System Shield? 12346 | -7/Factory | Local fabrication network quarantined 12470 | -7/Factory | Identified exit to Factory 12548 | -7/Factory | Build established: Hacker-Assassin 12742 | -7/Factory | Discovered new exit (range 15) 12758 | -7/Factory | Identified exit to Lower Caves 12764 | -7/Factory | Entered Lower Caves 13073 | -7/Lower Caves | Build established: Hacker-Mutant 13078 | -7/Lower Caves | Encountered a Warlord checkpoint 13089 | -7/Lower Caves | Identified exit to Lower Caves 13111 | -7/Lower Caves | Attracted the attention of an 0b10 checkpoint 13141 | -7/Lower Caves | Attracted the attention of an 0b10 base 13154 | -7/Lower Caves | Entered another Lower Caves area 13369 | -7/Lower Caves | Acquired the password to a Derelict Tinkerer's latest research 13376 | -7/Lower Caves | Found Prototype Special Weapon 13376 | -7/Lower Caves | Identified Molecular Deconstructor 13551 | -7/Lower Caves | Discovered new exit (range 14) 13555 | -7/Lower Caves | Identified exit to Zion 13555 | -7/Lower Caves | Entered Zion 13561 | -7/Zion | Found CR-A16's Pointy Stick 13575 | -7/Zion | Lost 5 parts (1p3u1w) 13586 | -7/Zion | Discovered new exit (range 15) 13590 | -7/Zion | Identified exit to Proximity Caves 13650 | -7/Zion | Found Prototype Device 13651 | -7/Zion | Identified Phasing AFG 13686 | -7/Zion | Learned location of Quarantine (-3) 13769 | -7/Zion | Given the Hacking Drone Bay 13769 | -7/Zion | Found Prototype Device 13785 | -7/Zion | Rebuked by Imprinter 13850 | -7/Zion | Identified Hacking Drone Bay 13888 | -7/Zion | Received a hallucinogenic algorithm 14072 | -7/Zion | Entered Proximity Caves 14073 | -6/Proximity Caves | Learned Factory interactive machine intel 14091 | -6/Proximity Caves | Attracted the attention of an 0b10 checkpoint 14123 | -6/Proximity Caves | Crushed by falling debris 14293 | -6/Proximity Caves | Spotted B-75 Beast 14294 | -6/Proximity Caves | Revealed the true nature of CR-A16's Pointy Stick 14297 | -6/Proximity Caves | Destroyed B-75 Beast 14411 | -6/Proximity Caves | Build established: Hacker-Sprinter 14430 | -6/Proximity Caves | Discovered exit to Factory (range 13) 14433 | -6/Proximity Caves | Entered Factory 14433 | -6/Factory | Evolved 2 slots: Utility x2 14434 | -6/Factory | Loaded intel: 47 interactive machine locations 14482 | -6/Factory | Repaired Imp. Cesium-ion Thruster 14640 | -6/Factory | Fabricated Imp. Hacking Suite? 14737 | -6/Factory | Discovered new exit (range 15) 14741 | -6/Factory | Identified exit to Factory 14751 | -6/Factory | Fabricated Imp. Hacking Suite? 14906 | -6/Factory | Build established: Hacker-Scout 15159 | -6/Factory | Fabricated Imp. System Shield? 15262 | -6/Factory | Fabricated Imp. System Shield? 15427 | -6/Factory | Local fabrication network quarantined 15461 | -6/Factory | Discovered new exit (range 15) 15475 | -6/Factory | Identified exit to Lower Caves 15483 | -6/Factory | First assault squad dispatched 15530 | -6/Factory | Discovered new exit (range 13) 15534 | -6/Factory | Identified exit to Extension 15534 | -6/Factory | Entered Extension 15545 | -6/Extension | Rescued a captive Derelict 15546 | -6/Extension | Rescued a captive Derelict 15588 | -6/Extension | Rescued a captive Derelict 15589 | -6/Extension | Rescued a captive Derelict 15633 | -6/Extension | Self-destructed Last Messages --------------- 15605_ RB-OXI(g) destroyed. 15606_ U-05 Engineer lays Concrete. 15608_ R-10 Processor collects Unknown Reactor. 15610_ Acquired Imp. Deuterium Engine. 15610_ S-27 Virus destroyed. 15611_ 3V-WV0(g) destroyed. 15611_ R-10 Processor collects Carbon-fiber Leg. 15615_ G-50 Soldier suffers critical hit. 15615_ G-50 Soldier destroyed. 15619_ Imp. Deuterium Engine destroyed. 15623_ R-10 Processor collects Lgt. Deuterium Engine. 15627_ Shield Generator destroyed. 15629_ G-50 Soldier destroyed. 15629_ S-27 Virus destroyed. 15629_ Door Terminal disabled. 15629_ Hvy. Rocket Launcher destroyed. 15629_ ALERT: Construction progress impeded, dispatching reinforcements to local area. 15631_ Imp. System Shield destroyed. 15633_ U-05 Engineer lays Concrete. Map ----- +----------------------------------------------------+ | | | | | | | | | | | | | | | | | | | | | | | | | | | | | | | | | ?????????????????????????????????????????????????? | | ?????????????????????????####????????????????????? | | ?????????????????????????#T"#????????????????????? | | ???####################### "#############????????? | | ???# !% ???????? | | ???# !% %* #??????????? | | ???# =%! % #??????????? | | ???# YsYg u + = ???????? | | ???# ############### % ### #??????????? | | ???# #????????????# [@% #?? #??????????? | | ???# ###??????????### # #??? +??????????? | | ???# #T###??????????# #?????? #??????????? | | ???# # #??????????####???????#####??????????? | | ???# #????????????????????????????????????? | | ???# #### ###????????????????????????????????????? | | ???# #??###??????????????????????????????????????? | | ???# #???????????????????????????????????????????? | | ???# #???????????????????????????????????????????? | | ???# #???????????????????????????????????????????? | | ???# #???????????????????????????????????????????? | | ???# #???????????????????????????????????????????? | | ???# #???????????????????????????????????????????? | | ???# #???????????????????????????????????????????? | | ???# #???????????????????????????????????????????? | | ???# #???????????????????????????????????????????? | | ???# #???????????????????????????????????????????? | | ???# #???????????????????????????????????????????? | | ???# #???????????????????????????????????????????? | | ???# #???????????????????????????????????????????? | | ???# #???????????????????????????????????????????? | | ???# #???????????????????????????????????????????? | | ???# #???????????????????????????????????????????? | | ???# #???????????????????????????????????????????? | | ???# #???????????????????????????????????????????? | +----------------------------------------------------+ Best States ------------- Heat Dissipation 50 Energy Generation 26 Energy Capacity 340 Matter Stores 300 Matter Capacity 300 Sight Range 22 Robot Scan Range 22 Terrain Scan Range 18 Terrain Scan Density 10 ECM Strength 2 Additional Mass Support 12 Armor Coverage 225 Evasion (%) 64 Targeting Accuracy 8 Melee Accuracy 5 Recoil Reduction 2 Salvage Targeting 4 Offensive Hacking 36 Defensive Hacking 34 Item Schematics ----------------- Hcp. Storage Unit | -8/Materials | Scanalyzed Imp. VTOL Module | -8/Materials | Scanalyzed Imp. Hacking Suite | -7/Factory | Hacked System Shield | -7/Factory | Hacked Imp. System Shield | -6/Factory | Hacked Mic. Nuclear Core | -6/Factory | Hacked Robot Schematics ------------------ None Fabricated ------------ Imp. Hacking Suite | x1 | -7/Factory Imp. Hacking Suite | x1 | -7/Factory Imp. Hacking Suite | x1 | -7/Factory System Shield | x1 | -7/Factory System Shield | x1 | -7/Factory System Shield | x1 | -7/Factory Imp. Hacking Suite | x1 | -6/Factory Imp. Hacking Suite | x1 | -6/Factory Imp. System Shield | x1 | -6/Factory Imp. System Shield | x1 | -6/Factory Alien Tech Used ----------------- None Achievements -------------- None Challenges ------------ None Game ------ Seed HugeSmallMegatreads Manual? 0 Play Time 02:37:08 Cumulative 227.1 hours Start 2021.01.21 @ 10:06:21 End 2021.01.22 @ 09:20:45 Sessions 9 Manual Loads 0 Difficulty Rogue Special Mode None Game No. 206 Rogue 206 Adventurer 0 Explorer 0 Win Type - Total 1 Types 0/0/0/1/0/0/0/0/0 Lore% 60 Gallery% 71 Achievement% 57 Wizard Run 0 Options --------- ASCII 0 Keyboard 1 Movement Numpad Keybinds 0 Fullscreen 1 Font 12/Terminus Map View 83x54 Tactical HUD 1 Map Filters NONE Filters NONE Steam 1 RUN: 1fe77eae-6dc9-4321-99e0-d8c1c65a079a